Cogmind - Beta 11 @@@ ROGUE MODE // 2022.03.22 @ 16:55:13 Player: ZOT Result: Destroyed by S-10 Pest with Light Assault Rifle Performance ------------- Evolutions (2) 1000 Regions Visited (3) 600 Robots Destroyed (25) 125 Value Destroyed (675) 675 Prototype IDs (1) 20 Alien Tech Used (0) 0 Bonus (0) 0 TOTAL SCORE: 2420 Bonus ------- None Cogmind --------- Core Integrity 0/550 Matter 209/300 Energy 98/100 System Corruption 0% Temperature Cool (45) Movement Core (50) Location -8/Materials Parts ------- > --- POWER (1) -------- (None) > --- PROPULSION (4) --- (None) > --- UTILITY (4) ------ Improved Utility Shielding > --- WEAPON (2) ------- (None) > --- INVENTORY (5) ---- Terrain Scan Processor Peak State ------------ > --- POWER ------------ Light Deuterium Engine > --- PROPULSION ------- Flight Unit Flight Unit Flight Unit Flight Unit > --- UTILITY ---------- Structural Scanner Improved Sensor Array Improved Signal Interpreter Core Shielding > --- WEAPON ----------- Assault Cannon > --- INVENTORY -------- Armored Wheel Armored Wheel Terrain Scanner Improved Utility Shielding Particle Cannon [Rating: 19] Favorites ----------- Power Ion Engine Engine Ion Engine Power Core Light Nuclear Core Propulsion Armored Wheel Wheel Armored Wheel Hover Unit Improved Hover Unit Flight Unit Flight Unit Utility Core Shielding Device Shield Generator Processor Improved Signal Interpreter Protection Core Shielding Weapon Small Laser Energy Gun Small Laser Energy Cannon Particle Cannon Ballistic Gun Light Assault Rifle Ballistic Cannon Assault Cannon Build | -11 -10 -9 -8 ------- Run | Scr Mat Mat Mat Slots Evolved 4 | . . 2 2 Power . | . . . . Propulsion 2 | . . 1 1 Utility 2 | . . 1 1 Weapon . | . . . . Parts Attached 44 | 6 7 13 18 Power 5 | 2 . 1 2 Engine 4 | 2 . 1 1 Core 1 | . . . 1 Reactor . | . . . . Propulsion 16 | 2 4 7 3 Treads . | . . . . Leg . | . . . . Wheel 9 | 2 4 1 2 Hover 2 | . . 2 . Flight 5 | . . 4 1 Utility 10 | . 2 2 6 Device 5 | . 1 2 2 Storage . | . . . . Processor 2 | . . . 2 Hackware . | . . . . Protection 3 | . 1 . 2 Artifact . | . . . . Weapon 13 | 2 1 3 7 Energy Gun 3 | 2 . 1 . Energy Cannon 3 | . 1 1 1 Ballistic Gun 5 | . . 1 4 Ballistic Cannon 2 | . . . 2 Launcher . | . . . . Special Weapon . | . . . . Impact Weapon . | . . . . Slashing Weapon . | . . . . Piercing Weapon . | . . . . Special Melee Weapon . | . . . . Unidentified Prototypes . | . . . . Parts Lost 25 | . . 6 19 Power 3 | . . 1 2 Propulsion 8 | . . 2 6 Utility 6 | . . 1 5 Weapon 8 | . . 2 6 Highest Loss Streak 9 | . . 6 9 To Critical Strikes . | . . . . Average Slot Usage (%) 87 | . 91 87 79 Engine 10 | . 14 10 5 Wheel 19 | . 27 21 4 Flight 7 | . . 5 24 Device 15 | . 12 19 17 Protection 10 | . 8 11 12 Energy Gun 9 | . 15 9 . Energy Cannon 8 | . 12 8 . Ballistic Gun 1 | . . . 5 Ballistic Cannon 1 | . . . 5 Naked Turns . | . . . . Heaviest Build 15 | 8 13 14 15 Greatest Support 36 | 20 24 36 24 Greatest Overweight (x) 3 | . . 3 1 Average Overweight (x) . | . . . . Largest Inventory Capacity 5 | 5 5 5 5 Average Capacity 5 | 5 5 5 5 Most Carried 5 | 5 5 5 5 Average Carried 4 | 1 4 4 3 Final Capacity 5 | 5 5 5 5 Final Carried 5 | 5 5 5 1 Class Distribution -------------------- 82% | Mutant 10% | Scavenger-Scout 6% | Scavenger-Sprinter Dominant Class ---------------- Mutant | -10/Materials Mutant | -9/Materials Scavenger-Scout | -8/Materials Resources | -11 -10 -9 -8 ----------- Run | Scr Mat Mat Mat Matter Collected 654 | 211 119 110 214 Remotely . | . . . . Salvage Created 709 | . 237 174 298 Parts 57 | . 19 16 22 Haulers Intercepted . | . . . . Recyclers Shooed 2 | . 1 . 1 Parts Field Recycled . | . . . . Retrieved Matter . | . . . . Parts Self-Destructed . | . . . . Prevented . | . . . . Kills | -11 -10 -9 -8 ------- Run | Scr Mat Mat Mat Combat Hostiles Destroyed 20 | . 7 6 7 Guns 5 | . 1 . 4 Cannons 15 | . 6 6 3 Classes Destroyed 8 | . 3 2 3 Worker 1 | . . . 1 Builder 1 | . . . 1 Operator 1 | . 1 . . Watcher 2 | . . 1 1 Swarmer 8 | . 3 4 1 Grunt 9 | . 4 . 5 Sentry 2 | . . 2 . Hunter 1 | . . . 1 Best Kill Streak 5 | . 3 3 5 Combat Bots Only 5 | . 3 3 5 Max Kills in Single Turn 1 | . 1 1 1 Gunslinging . | . . . . Exploded . | . . . . Melee . | . . . . Uniques/NPCs Destroyed . | . . . . Combat | -11 -10 -9 -8 -------- Run | Scr Mat Mat Mat Damage Taken 2722 | . 75 853 1794 Core 763 | . 19 188 556 Absorbed by Shields 129 | . 30 99 . Redirected to Shielding 137 | . 1 36 100 Regen/Repaired (Parts) 159 | . 28 . 131 Core Remaining (%) 81 | 100 92 53 . Volleys Fired 102 | . 18 18 66 Largest 2 | . 2 2 2 Hottest 108 | . 108 108 68 Shots Fired 152 | . 36 26 90 Gun 86 | . 27 9 50 Cannon 66 | . 9 17 40 Launcher . | . . . . Special . | . . . . Kinetic 84 | . . . 84 Thermal 59 | . 27 26 6 Explosive . | . . . . Electromagnetic 9 | . 9 . . Robot Hit Streak 16 | . 9 3 16 Robot Miss Streak 4 | . 2 4 4 Penetration Max . | . . . . Secondary Targets 1 | . . . 1 Max Gunslinging Chain 1 | . . . 1 Shots Hit Robots 96 | . 22 13 61 Core Hits 44 | . 9 7 28 Critical Kills . | . . . . Critical Parts Destroyed . | . . . . Critical Strikes 1 | . . . 1 Blast 1 | . . . 1 Melee Attacks . | . . . . Impact . | . . . . Slashing . | . . . . Piercing . | . . . . Sneak Attacks . | . . . . Combat Hostiles . | . . . . Follow-up Attacks . | . . . . Damage Inflicted 1459 | . 332 248 879 Guns 493 | . 190 22 281 Cannons 966 | . 142 226 598 Explosions . | . . . . Melee . | . . . . Ramming . | . . . . Kinetic 779 | . . . 779 Thermal 604 | . 256 248 100 Explosive . | . . . . Electromagnetic 76 | . 76 . . Impact . | . . . . Slashing . | . . . . Piercing . | . . . . Highest Corruption 1 | . . 1 . Average Corruption 1 | . . 1 . Corruption Purged . | . . . . Corruption Blocked . | . . . . Effects 1 | . . 1 . Data Loss (minor) 1 | . . 1 . Overload Shots . | . . . . Overflow Damage . | . . . . Projectiles . | . . . . Explosions . | . . . . Melee . | . . . . Knockbacks 10 | . . . 10 Impact . | . . . . Kinetic 9 | . . . 9 Secondary 1 | . . . 1 Self-Inflicted Damage . | . . . . Shots . | . . . . Rammed . | . . . . Targets Rammed . | . . . . Kicked . | . . . . Crushed . | . . . . Highest Temperature 277 | . 148 277 193 Average Temperature 64 | . 55 97 50 Received Heat Transfer 1106 | . 20 96 990 Siege Activations . | . . . . Robots Corrupted . | . . . . Combat Hostiles . | . . . . Parts Fried 1 | . 1 . . Impact Corruptions . | . . . . Robots Melted . | . . . . Combat Hostiles . | . . . . Parts Melted 1 | . 1 . . Heat Transferred 1151 | . 509 457 185 Parts Sabotaged . | . . . . Parts Stolen . | . . . . Parts Stripped . | . . . . Power Chain Reactions . | . . . . Missiles Intercepted . | . . . . Alert | -11 -10 -9 -8 ------- Run | Scr Mat Mat Mat Peak Influence 275 | . 204 180 275 Initial 76 | . . 1 76 Average 81 | . 69 54 144 Maximum Alert Level 1 | . 1 . 1 Low Security (%) 92 | 100 96 100 76 Level 1 7 | . 3 . 23 Level 2 . | . . . . Level 3 . | . . . . Level 4 . | . . . . Level 5 . | . . . . High Security . | . . . . Max Security . | . . . . Squads Dispatched 6 | . 1 1 4 Investigation . | . . . . Extermination . | . . . . Reinforcement 5 | . 1 1 3 Assault . | . . . . Garrison 1 | . . . 1 Intercept . | . . . . Searches Triggered . | . . . . Construction Impeded 1 | . . . 1 Haulers Reinforced . | . . . . Active Scanning Responses . | . . . . Cargo Convoy Interrupts . | . . . . Stealth | -11 -10 -9 -8 --------- Run | Scr Mat Mat Mat Distress Signals . | . . . . Communications Jammed . | . . . . Distress Signals . | . . . . Times Spotted 45 | . 8 11 26 Peak Tracking Total 9 | . 3 7 9 Tactical Retreats 6 | . . 1 5 Traps | -11 -10 -9 -8 ------- Run | Scr Mat Mat Mat Traps Triggered 1 | . 1 . . Indirectly . | . . . . Trap Hack Attempts . | . . . . Triggered . | . . . . Disarmed . | . . . . Reprogrammed 2 | . 2 . . Reused . | . . . . Traps Extracted . | . . . . Installed . | . . . . Triggered . | . . . . Machines | -11 -10 -9 -8 ---------- Run | Scr Mat Mat Mat Machines Disabled . | . . . . Max in Single Turn . | . . . . Machines Sabotaged . | . . . . Garrisons Compromised . | . . . . Overloaded Fab Kills . | . . . . Hacking | -11 -10 -9 -8 --------- Run | Scr Mat Mat Mat Machines Accessed 13 | . 3 7 3 Terminals 7 | . 2 3 2 Fabricators . | . . . . Repair Stations 3 | . 1 1 1 Recycling Units 1 | . . 1 . Scanalyzers 2 | . . 2 . Garrison Access . | . . . . Total Hacks 36 | . 7 18 11 Successful 21 | . 4 9 8 Failed 15 | . 3 9 3 Catastrophic 1 | . . 1 . Database Lockouts . | . . . . Manual 1 | . 1 . . Terminals 16 | . 5 7 4 Fabricators . | . . . . Repair Stations 10 | . 2 1 7 Recycling Units 2 | . . 2 . Scanalyzers 8 | . . 8 . Garrison Access . | . . . . Terminal Hacks 7 | . 2 2 3 Record 2 | . . 1 1 Branch Access Points 1 | . . . 1 Reprogram Traps 1 | . 1 . . Zone Layout 3 | . 1 1 1 Fabricator Hacks . | . . . . Repair Station Hacks 7 | . 2 . 5 Scan Component 4 | . 1 . 3 Repair 3 | . 1 . 2 Recycling Unit Hacks . | . . . . Scanalyzer 7 | . . 7 . Insert Component 3 | . . 3 . Analyze 4 | . . 4 . Garrison Access Hacks . | . . . . Unauthorized Hacks . | . . . . Terminals . | . . . . Fabricators . | . . . . Repair Stations . | . . . . Recycling Units . | . . . . Scanalyzers . | . . . . Garrison Access . | . . . . Data Cores Recovered . | . . . . Used . | . . . . Hacking Detections 12 | . 3 6 3 Full Trace Events 1 | . . 1 . Feedback Events 1 | . . 1 . Corruption 1 | . . 1 . Feedback Blocked . | . . . . Robot Schematics Acquired . | . . . . Robots Built . | . . . . Authchips . | . . . . Time . | . . . . Total Robot Build Rating . | . . . . Part Schematics Acquired 3 | . . 3 . Parts Built . | . . . . Authchips . | . . . . Time . | . . . . Total Part Build Rating . | . . . . Parts Repaired 3 | . 1 . 2 Time 90 | . 32 . 58 Parts Recycled . | . . . . Recycled Matter . | . . . . Retrieved Matter . | . . . . Retrieved Components . | . . . . Parts Scanalyzed 3 | . . 3 . Part Schematics Acquired 3 | . . 3 . Parts Damaged . | . . . . Bothacking | -11 -10 -9 -8 ------------ Run | Scr Mat Mat Mat Used RIF Installer . | . . . . Robots Hacked . | . . . . Non-combat . | . . . . Combat . | . . . . Robot Hacks Applied . | . . . . Relay Couplers Released . | . . . . Fabnet Peak Effective % . | . . . . Robots Rewired . | . . . . Allies Hacked . | . . . . Hacks Repelled . | . . . . Allies | -11 -10 -9 -8 -------- Run | Scr Mat Mat Mat Total Allies . | . . . . Largest Group . | . . . . Highest-Rated Group . | . . . . Highest-Rated Ally . | . . . . Total Orders . | . . . . Ally Attacks . | . . . . Total Damage . | . . . . Kills . | . . . . Allies Corrupted . | . . . . Allies Melted . | . . . . Intel | -11 -10 -9 -8 ------- Run | Scr Mat Mat Mat Robot Analysis Total . | . . . . Derelict Logs Recovered . | . . . . Drone Launches . | . . . . Drone Recoveries . | . . . . Exploration | -11 -10 -9 -8 ------------- Run | Scr Mat Mat Mat Turns Passed 1316 | 45 577 365 329 Spaces Moved 1053 | 38 506 327 182 Core 28 | 5 . 17 6 Treads . | . . . . Legs . | . . . . Wheels 774 | 33 506 207 28 Hover . | . . . . Flight 251 | . . 103 148 Fastest Speed 31 | 50 80 34 31 Average Speed 77 | 76 89 78 40 Slowest Speed 200 | 80 90 200 100 Overloaded Moves . | . . . . Propulsion Burnouts . | . . . . Robots Hopped 2 | . . 2 . Cave-ins Triggered . | . . . . Exploration Rate (%) 25 | 3 51 26 21 Regions Visited 3 Branch Regions . Pre-discovered Areas . | . . . . Known Exits Taken . | . . . . Unknown Exits Taken 3 | 1 1 1 . Scrap Searched . | . . . . Spaces Dug . | . . . . Terrain Destroyed 3 | . . . 3 Melee . | . . . . Projectile 3 | . . . 3 AOE . | . . . . Terrain Rammed . | . . . . Walls Destroyed . | . . . . Machines Disabled . | . . . . Actions | -11 -10 -9 -8 --------- Run | Scr Mat Mat Mat Total 1408 | 53 592 406 357 Wait 162 | . 49 36 77 Move 1046 | 37 505 322 182 Hop 2 | . . 2 . Pick Up 34 | 10 6 8 10 Fast Attach 10 | . 5 4 1 Attach 25 | 5 . 6 14 Detach 3 | . . 1 2 Swap 9 | 1 2 3 3 Drop 15 | . 7 6 2 Fire 102 | . 18 18 66 Melee . | . . . . Ram . | . . . . Kick . | . . . . Crush . | . . . . Escape Stasis . | . . . . Rewire . | . . . . Trap . | . . . . Miscellaneous . | . . . . Route ------- -11/Scrapyard -10/Materials -9/Materials -8/Materials (discovered 2 exits: Sto x2) History --------- Turn | Location | Event 30 | -11/Scrapyard | Discovered new exit (range 16) 46 | -11/Scrapyard | Entered Materials 301 | -10/Materials | Build established: Mutant 471 | -10/Materials | Repaired Arm. Wheel 620 | -10/Materials | Discovered new exit (range 4) 623 | -10/Materials | Entered another Materials area 623 | -9/Materials | Evolved 2 slots: Propulsion x1, Utility x1 927 | -9/Materials | Lost 6 parts (1p2n1u2w) 968 | -9/Materials | Discovered new exit (range 13) 988 | -9/Materials | Entered another Materials area 988 | -8/Materials | Evolved 2 slots: Propulsion x1, Utility x1 991 | -8/Materials | Identified exit to Storage 1055 | -8/Materials | Repaired Core Shielding 1089 | -8/Materials | Repaired Arm. Wheel 1232 | -8/Materials | Garrison activated, responded to threat 1245 | -8/Materials | Lost 6 parts (1p3n2w) 1295 | -8/Materials | Core integrity fell below 50% 1313 | -8/Materials | Core integrity fell below 20% 1317 | -8/Materials | Destroyed by S-10 Pest with Light Assault Rifle Last Messages --------------- 01254_ G-47 Trooper destroyed. 01254_ Switching to secondary target: S-10 Pest. 01259_ S-10 Pest destroyed. 01262_ Acquired 13 matter. 01274_ K-01 Serf collects debris. 01276_ R-06 Scavenger collects Aluminum Leg. 01288_ Terrain Scanner destroyed. 01290_ Lgt. Assault Rifle destroyed. 01293_ Core Shielding destroyed. 01293_ Lgt. Nuclear Core destroyed. 01294_ Critical hit (Burn: +37). 01295_ Acquired Lgt. Assault Rifle. 01296_ Arm. Wheel destroyed. 01298_ Acquired Lgt. Assault Rifle. 01307_ K-01 Serf collects debris. 01308_ K-01 Serf destroyed. 01309_ Imp. Sensor Array destroyed. 01311_ Lgt. Assault Rifle destroyed. 01317_ Critical hit (Burn: +37). 01317_ G-47 Trooper destroyed. Map ----- +----------------------------------------------------+ | ??????????????????????????"" ?????? # """## | | ????????????????????????? """ ##???## """#! | | ????????????????????????? "" ####### #! | | ????????????????????????? """ ##########+#### | | ????????????????????????? """ ! | | ????????????????????????? """ ! | | ????????????????????### " %= | | ????????????????????## # | | ????????????????????## ####### # | | ????????????????????## """ ####### # | | ?????????????????????? """ ?????## # | | ??????????????????????? """ #????## | | ??????????????????????? #????## | | ??????????????????????# #????## | | ??????????????????#???# #????#### | | ??????????????????????# #????####]] | | ??????????????????????# #??????##]] | | ?????????????????"????# ???????## | | ???????????????????? ?# ????????## | | ??????????????????????# ??????????## """ | | ??????????????????????? ???????????## """" | | ???????????????????????? =% ?? ######### """%" | | ??????????????????????####g################ """" | | ???????????????????????# g% ###! # | | ???????????????????????# ### """ + | | ???????????????????????# @[ ### R" # """ | | ???????????????????????# %s ### """ # """ | | ???????????????????????#[ g! ### """ # """ | | ??????????????????#????# [### """ # """ | | ??????????###T####T## #######+### """ # | | ?????????? % %##### ### # | | ?????????? %%%%% ###############+## | | ?????????? =##### ########## # | | ??????????################### ###?????## # | | ??????????################### ########## # ? | | ??????????## T # + #########%% * # ? | | ??????????## #""" # =%+%= # ? | | ?????????? # """ """ #"R ! # ################# ? | | ?????????? # """ """ #""" # ####### ? | | ?????????? + """ """ # # ####### ????????? | | ?????????? # # + ????? | | ?????????? # # ! # ????? | | ??????????## # ##### "?????? | | ??????????##############+######## "?????? | | ??????????# #??#### T # "?????? | | ??????????+ #????## """ # ??????? | | ??????????# "S #????## / """ + "?????? | | ??????????# """ #??#?## """ # ??????? | | ??????????# "" #????# # ??????? | | ??????????# #????## # ??????? | +----------------------------------------------------+ Best States ------------- Heat Dissipation 31 Energy Generation 14 Energy Capacity 250 Matter Stores 300 Matter Capacity 300 Sight Range 16 Robot Scan Range 15 Terrain Scan Range 14 Terrain Scan Density 10 Core Shielding 20 Utility Shielding 66 Evasion (%) 63 Item Schematics ----------------- Imp. Medium Laser | -9/Materials | Scanalyzed Arm. Wheel | -9/Materials | Scanalyzed Imp. Hover Unit | -9/Materials | Scanalyzed Robot Schematics ------------------ None Fabricated ------------ Nothing Alien Tech Used ----------------- None Achievements -------------- None Challenges ------------ None Game ------ Seed GatlingSwordDoomcannon Manual? 0 Play Time 00:44:09 Cumulative 20.4 hours Start 2022.03.21 @ 17:04:21 End 2022.03.22 @ 16:55:13 Sessions 2 Manual Loads 0 Difficulty Rogue Special Mode None Game No. 23 Rogue 23 Adventurer 0 Explorer 0 Win Type - Total 0 Types 0/0/0/0/0/0/0/0/0 Lore% 7 Gallery% 21 Achievement% 15 Wizard Run 0 Options --------- ASCII 0 Keyboard 0 Movement Mouse Keybinds 0 Fullscreen 1 Font 24/Smallcaps Map View 76x50 Tactical HUD 1 Map Filters NONE Filters NONE Steam 1 RUN: d5b5b33c-7101-4110-9466-97e1e60b435e